bitfinex-derivatives/quotes_BTCF0:USTF0_20251225
["timestamp","ask_amount","ask_price","bid_price","bid_amount"]
[1766669942187,0.0114299,87550.0,87535.0,0.0114318]
[1766669942396,0.02516094,87549.0,87535.0,0.0114318]
[1766669942595,0.02516094,87548.0,87535.0,0.0114318]
[1766669942802,0.0114299,87550.0,87535.0,0.0114318]
[1766669943104,0.02516092,87549.0,87535.0,0.0114318]
[1766669943294,0.0114299,87550.0,87535.0,0.0114318]
[1766669943603,0.02516092,87549.0,87535.0,0.0114318]
[1766669943803,0.0114299,87550.0,87535.0,0.0114318]
[1766669944104,0.02516092,87549.0,87535.0,0.0114318]
[1766669944305,0.0114299,87550.0,87535.0,0.0114318]
[1766669944604,0.02516089,87549.0,87535.0,0.0114318]
[1766669944805,0.0114299,87550.0,87535.0,0.0114318]
[1766669944996,0.02516091,87549.0,87535.0,0.0114318]
[1766669945196,0.0114299,87550.0,87535.0,0.0114318]
[1766669945397,0.02516088,87549.0,87535.0,0.0114318]
[1766669945605,0.0114299,87550.0,87535.0,0.0114318]
[1766669945806,0.02516088,87549.0,87535.0,0.0114318]
[1766669946004,0.0114299,87550.0,87535.0,0.0114318]
[1766669946205,0.02516088,87549.0,87536.0,0.01142]
[1766669946405,0.0114299,87550.0,87536.0,0.01142]
[1766669946595,0.02516085,87549.0,87536.0,0.01142]
[1766669946797,0.0114299,87550.0,87536.0,0.01142]
[1766669946997,0.02516086,87549.0,87536.0,0.01142]
[1766669947297,0.0114299,87550.0,87536.0,0.01142]
[1766669947596,0.02516098,87549.0,87536.0,0.01142]
[1766669947797,0.0114299,87550.0,87536.0,0.01142]
[1766669948105,0.02516097,87549.0,87536.0,0.01142]
[1766669948308,0.0114299,87550.0,87536.0,0.01142]
[1766669948498,0.02516095,87549.0,87536.0,0.01142]
[1766669948698,0.0114299,87550.0,87536.0,0.01142]
[1766669948899,0.02516096,87549.0,87536.0,0.01142]
[1766669949098,0.0114299,87550.0,87536.0,0.01142]
[1766669949309,0.02516094,87549.0,87536.0,0.01142]
[1766669949510,0.0114299,87550.0,87536.0,0.01142]
[1766669949709,0.02516093,87549.0,87536.0,0.01142]
[1766669950009,0.0114299,87550.0,87536.0,0.01142]
[1766669950210,0.02516094,87549.0,87536.0,0.01142]
[1766669950410,0.0114299,87550.0,87536.0,0.01142]
[1766669950709,0.02516093,87549.0,87536.0,0.01142]
[1766669950912,0.0114299,87550.0,87536.0,0.01142]
[1766669951114,0.02516092,87549.0,87536.0,0.01142]
[1766669951305,0.0114299,87550.0,87536.0,0.01142]
[1766669951506,0.02516091,87549.0,87536.0,0.01142]
[1766669951705,0.0114299,87550.0,87536.0,0.01142]
[1766669951910,0.0251609,87549.0,87536.0,0.01142]
[1766669952111,0.0114299,87550.0,87536.0,0.01142]
[1766669952312,0.0251609,87549.0,87536.0,0.01142]
[1766669952612,0.0114299,87550.0,87536.0,0.01142]
[1766669952814,0.02516091,87549.0,87536.0,0.01142]
[1766669953112,0.0114299,87550.0,87536.0,0.01142]
[1766669953318,0.02516088,87549.0,87536.0,0.01142]
[1766669953615,0.0114299,87550.0,87536.0,0.01142]
[1766669953808,0.0251609,87549.0,87536.0,0.01142]
[1766669954111,0.0114299,87550.0,87536.0,0.01142]
[1766669954304,0.02516088,87549.0,87536.0,0.01142]
[1766669954504,0.0114299,87550.0,87536.0,0.01142]
[1766669954704,0.02516088,87549.0,87536.0,0.01142]
[1766669954905,0.0114299,87550.0,87536.0,0.01142]
[1766669955110,0.02516088,87549.0,87536.0,0.01142]
[1766669955314,0.0114299,87550.0,87536.0,0.01142]
[1766669955516,0.0251608,87549.0,87536.0,0.01142]
[1766669955703,0.0114299,87550.0,87536.0,0.01142]
[1766669955903,0.02516087,87549.0,87536.0,0.01142]
[1766669956113,0.0114299,87550.0,87536.0,0.01142]
[1766669956310,0.02516087,87549.0,87536.0,0.01142]
[1766669956512,0.0114299,87550.0,87536.0,0.01142]
[1766669956709,0.02516087,87549.0,87536.0,0.01142]
[1766669956912,0.0114299,87550.0,87536.0,0.01142]
[1766669957113,0.02516086,87549.0,87536.0,0.01142]
[1766669957319,0.0114299,87550.0,87536.0,0.0228517]
[1766669957512,0.02516085,87549.0,87536.0,0.01142]
[1766669957718,0.0572,87551.0,87538.0,0.0114314]
[1766669957906,0.02516085,87550.0,87538.0,0.0114314]
[1766669958106,0.02516085,87549.0,87538.0,0.0114314]
[1766669958306,0.0572,87551.0,87538.0,0.0114314]
[1766669958506,0.02516025,87550.0,87538.0,0.0114314]
[1766669958707,0.02516025,87549.0,87538.0,0.0114314]
[1766669958906,0.0572,87551.0,87538.0,0.0114314]
[1766669959106,0.02516025,87550.0,87538.0,0.0114314]
[1766669959308,0.02516025,87549.0,87538.0,0.0114314]
[1766669959515,0.0572,87551.0,87538.0,0.0114314]
[1766669959816,0.02515992,87550.0,87538.0,0.0114314]
[1766669960015,0.02515992,87549.0,87538.0,0.0114314]
[1766669960212,0.0572,87551.0,87538.0,0.0114314]
[1766669960518,0.02515971,87550.0,87538.0,0.0114314]
[1766669960716,0.02515971,87549.0,87538.0,0.0114314]
[1766669960916,0.0572,87551.0,87538.0,0.0114314]
[1766669961117,0.02515971,87550.0,87538.0,0.0114314]
[1766669961319,0.02515971,87549.0,87538.0,0.0114314]
[1766669961518,0.0572,87551.0,87538.0,0.0114314]
[1766669961718,0.02515952,87550.0,87538.0,0.0114314]
[1766669961918,0.02515952,87549.0,87538.0,0.0114314]
[1766669962118,0.0686298,87551.0,87538.0,0.0114314]
[1766669962319,0.02515935,87550.0,87538.0,0.0114314]
[1766669962518,0.02515935,87549.0,87538.0,0.0114314]
[1766669962718,0.0686298,87551.0,87538.0,0.0114314]
[1766669962918,0.02515935,87550.0,87538.0,0.0114314]
[1766669963222,0.02515935,87549.0,87535.0,0.0114318]
[1766669963417,0.0686298,87551.0,87535.0,0.0114318]
[1766669963719,0.02515923,87550.0,87535.0,0.0114318]
[1766669963922,0.02515923,87549.0,87535.0,0.0114318]
[1766669964216,0.0686298,87551.0,87535.0,0.0114318]
[1766669964408,0.02515914,87550.0,87535.0,0.0114318]
[1766669964614,0.0114303,87547.0,87533.0,0.0114321]
[1766669964814,0.0114303,87547.0,87533.0,0.0414321]
[1766669965215,0.01143,87550.0,87533.0,0.0414321]
[1766669965414,0.0114302,87548.0,87533.0,0.0414321]
[1766669966412,0.0114302,87548.0,87534.0,0.01142]
[1766669966612,0.0114302,87548.0,87534.0,0.04142]
[1766669968322,0.0114302,87548.0,87535.0,0.0114319]
[1766669969127,0.0686298,87551.0,87535.0,0.0114319]
[1766669970425,0.0114301,87549.0,87535.0,0.0114319]
[1766669971722,0.0572,87551.0,87537.0,0.0114316]
[1766669974430,0.0114299,87550.0,87537.0,0.0114316]
[1766669977251,0.0114302,87548.0,87535.0,0.0114318]
[1766669978249,0.0686299,87551.0,87537.0,0.0114315]
[1766669978448,0.02511551,87550.0,87537.0,0.0114315]
[1766669978648,0.0686299,87551.0,87537.0,0.0114315]
[1766669978848,0.02511552,87550.0,87537.0,0.0114315]
[1766669979052,0.0686299,87551.0,87537.0,0.0114315]
[1766669979353,0.02511552,87550.0,87537.0,0.0114315]
[1766669979547,0.0686299,87551.0,87537.0,0.0114315]
[1766669979750,0.02511559,87550.0,87537.0,0.0114315]
[1766669979951,0.0686299,87551.0,87537.0,0.0114315]
[1766669980150,0.02511559,87550.0,87537.0,0.0114315]
[1766669980451,0.0686299,87551.0,87537.0,0.0114315]
[1766669980650,0.02511567,87550.0,87537.0,0.0114315]
[1766669980850,0.0686299,87551.0,87537.0,0.0114315]
[1766669981052,0.02511567,87550.0,87537.0,0.0114315]
[1766669981252,0.0686299,87551.0,87537.0,0.0114315]
[1766669981453,0.02511577,87550.0,87537.0,0.0114315]
[1766669981655,0.0572,87551.0,87534.0,0.01142]
[1766669981856,0.0251158,87550.0,87534.0,0.04142]
[1766669982045,0.0572,87551.0,87534.0,0.04142]
[1766669982958,0.02511566,87550.0,87534.0,0.04142]
[1766669983253,0.02511566,87549.0,87541.0,0.0114311]
[1766669983456,0.02511566,87548.0,87541.0,0.0114311]
[1766669983656,0.0572,87551.0,87541.0,0.0114311]
[1766669983954,0.02511562,87550.0,87541.0,0.0114311]
[1766669984155,0.02511562,87549.0,87541.0,0.0114311]
[1766669984357,0.0572,87551.0,87541.0,0.0114311]
[1766669984548,0.02511543,87550.0,87541.0,0.0114311]
[1766669984748,0.02511543,87549.0,87541.0,0.0114311]
[1766669984956,0.0572,87551.0,87541.0,0.0114311]
[1766669985153,0.02511541,87550.0,87541.0,0.0114311]
[1766669985355,0.02511541,87549.0,87541.0,0.0114311]
[1766669985551,0.0572,87551.0,87541.0,0.0114311]
[1766669985753,0.02511527,87550.0,87541.0,0.0114311]
[1766669985949,0.02511527,87549.0,87541.0,0.0114311]
[1766669986255,0.0572,87551.0,87541.0,0.0114311]
[1766669986453,0.02511509,87550.0,87541.0,0.0114311]
[1766669986652,0.02511509,87549.0,87541.0,0.0114311]
[1766669986853,0.0572,87551.0,87541.0,0.0114311]
[1766669987060,0.02511442,87550.0,87541.0,0.0114311]
[1766669987353,0.02511442,87549.0,87541.0,0.0114311]
[1766669987558,0.0572,87551.0,87541.0,0.0114311]
[1766669987748,0.02511377,87550.0,87541.0,0.0114311]
[1766669987949,0.02511377,87549.0,87541.0,0.0114311]
[1766669988150,0.0572,87551.0,87541.0,0.0114311]
[1766669988348,0.02511312,87550.0,87541.0,0.0114311]
[1766669988557,0.0572,87551.0,87541.0,0.0114311]
[1766669988755,3e-08,87550.0,87547.0,0.0114302]
[1766669989060,0.05241964,87555.0,87549.0,0.0114299]
[1766669989259,0.0572,87555.0,87549.0,0.0114299]
[1766669989661,0.0572,87555.0,87546.0,0.0114304]
[1766669990351,0.0572,87555.0,87548.0,0.0114301]
[1766669991060,0.0572,87555.0,87548.0,0.0054301]
[1766669997263,0.0572,87555.0,87545.0,0.0114305]
[1766669998068,0.0572,87555.0,87547.0,0.0114302]
[1766669999660,0.00017132,87559.0,87547.0,0.0114302]
[1766669999859,0.04128,87558.0,87547.0,0.0114302]
[1766670000268,0.04128,87558.0,87549.0,0.01143]
[1766670002459,0.04128,87558.0,87542.0,0.01159132]
[1766670002460,0.0572,87557.0,87551.0,0.0114298]
[1766670002969,0.0572,87557.0,87543.0,0.0114308]
[1766670003167,0.0572,87557.0,87543.0,0.0414308]
[1766670003763,0.0572,87557.0,87551.0,0.0114297]
[1766670005373,0.00017132,87559.0,87551.0,0.0114297]
[1766670005674,0.00017132,87559.0,87553.0,0.0114295]
[1766670006063,0.01276,87563.0,87556.0,0.0114291]
[1766670007667,0.00017132,87568.0,87556.0,0.0114291]
[1766670007872,0.0572,87567.0,87556.0,0.0114291]
[1766670008264,0.00017132,87568.0,87560.0,0.0114285]
[1766670008458,0.00017132,87568.0,87565.0,0.0114279]
[1766670008459,2e-08,87568.0,87565.0,0.0114279]
[1766670012677,2e-08,87568.0,87566.0,0.01141]
[1766670013167,2e-08,87568.0,87567.0,0.0114277]
[1766670013569,2e-08,87574.0,87567.0,0.0114277]
[1766670013770,2e-08,87574.0,87566.0,0.01141]
[1766670013970,2e-08,87574.0,87567.0,0.0114277]
[1766670014270,2e-08,87574.0,87566.0,0.01141]
[1766670025190,2e-08,87574.0,87566.0,0.0228378]
[1766670028493,2e-08,87574.0,87566.0,0.01141]
[1766670029696,2e-08,87574.0,87563.0,0.0114281]
[1766670032991,2e-08,87574.0,87565.0,0.0114279]
[1766670033497,2e-08,87574.0,87566.0,0.01141]
[1766670034198,2e-08,87574.0,87566.0,1e-08]
[1766670034399,0.0114274,87570.0,87566.0,1e-08]
[1766670034697,0.0114274,87570.0,87561.0,0.00017132]
[1766670035700,0.0114271,87572.0,87561.0,0.00017132]
[1766670037700,0.0114269,87573.0,87561.0,0.00017132]
[1766670038005,0.02488511,87572.0,87561.0,0.00017132]
[1766670038305,0.02488511,87571.0,87561.0,0.00017132]
[1766670038603,0.0114269,87573.0,87561.0,0.00017132]
[1766670038804,0.02489285,87572.0,87561.0,0.00017132]
[1766670039005,0.02489285,87571.0,87561.0,0.00017132]
[1766670039304,0.0114269,87573.0,87561.0,0.00017132]
[1766670039504,0.02489089,87572.0,87561.0,0.00017132]
[1766670039705,0.02489089,87571.0,87561.0,0.00017132]
[1766670039907,2e-08,87574.0,87561.0,0.00017132]
[1766670040108,0.0248908,87573.0,87561.0,0.00017132]
[1766670040305,0.0248908,87572.0,87561.0,0.00017132]
[1766670040605,0.0248908,87571.0,87561.0,0.00017132]
[1766670040806,2e-08,87574.0,87561.0,0.00017132]
[1766670040997,0.02489018,87573.0,87561.0,0.00017132]
[1766670041196,0.02489018,87572.0,87561.0,0.00017132]
[1766670041400,0.02489018,87571.0,87561.0,0.00017132]
[1766670041601,2e-08,87574.0,87561.0,0.00017132]
[1766670041802,0.02488966,87573.0,87561.0,0.00017132]
[1766670042001,0.02488966,87572.0,87561.0,0.00017132]
[1766670042300,0.02488966,87571.0,87561.0,0.00017132]
[1766670042501,0.01142682,87574.0,87561.0,0.00017132]
[1766670042699,0.02488926,87573.0,87561.0,0.00017132]
[1766670042900,2e-08,87574.0,87561.0,0.00017132]
[1766670043105,0.02488926,87573.0,87561.0,0.00017132]
[1766670043306,2e-08,87574.0,87561.0,0.00017132]
[1766670043497,0.02488894,87573.0,87561.0,0.00017132]
[1766670043697,2e-08,87574.0,87561.0,0.00017132]
[1766670043906,0.02488893,87573.0,87561.0,0.00017132]
[1766670044102,2e-08,87574.0,87561.0,0.00017132]
[1766670044303,0.0248887,87573.0,87561.0,0.00017132]
[1766670044507,0.0248887,87572.0,87561.0,0.00017132]
[1766670044809,0.0248887,87571.0,87561.0,0.00017132]
[1766670045003,2e-08,87574.0,87561.0,0.00017132]
[1766670045306,0.02488848,87573.0,87561.0,0.00017132]
[1766670045501,0.02488848,87572.0,87561.0,0.00017132]
[1766670045701,2e-08,87574.0,87561.0,0.00017132]
[1766670045898,0.02488829,87573.0,87562.0,0.0114283]
[1766670046098,0.02488829,87572.0,87562.0,0.0114283]
[1766670046392,2e-08,87574.0,87562.0,0.0114283]
[1766670046593,0.02488836,87573.0,87562.0,0.0114283]
[1766670046797,0.02488836,87572.0,87562.0,0.0114283]
[1766670046999,2e-08,87574.0,87562.0,0.0114283]
[1766670047195,0.02488845,87573.0,87562.0,0.0114283]
[1766670047401,0.02488845,87572.0,87562.0,0.0114283]
[1766670047711,2e-08,87574.0,87562.0,0.0114283]
[1766670047912,0.02488845,87573.0,87562.0,0.0114283]
[1766670048100,2e-08,87574.0,87562.0,0.0114283]
[1766670048101,0.02488845,87572.0,87562.0,0.0114283]
[1766670048300,2e-08,87574.0,87562.0,0.0114283]
[1766670048596,0.02488854,87573.0,87562.0,0.0114283]
[1766670048801,0.02488854,87572.0,87562.0,0.0114283]
[1766670049102,2e-08,87574.0,87562.0,0.0114283]
[1766670049302,0.02488865,87573.0,87562.0,0.0114283]
[1766670049509,0.02488865,87572.0,87562.0,0.0114283]
[1766670049709,2e-08,87574.0,87562.0,0.0114283]
[1766670049911,0.02488867,87573.0,87562.0,0.0114283]
[1766670050210,0.02488867,87572.0,87562.0,0.0114283]
[1766670050410,2e-08,87574.0,87562.0,0.0114283]
[1766670050612,0.0248888,87573.0,87562.0,0.0114283]
[1766670050810,2e-08,87574.0,87562.0,0.0114283]
[1766670050811,0.0248888,87572.0,87562.0,0.0114283]
[1766670051111,2e-08,87574.0,87562.0,0.0114283]
[1766670051307,0.02488893,87573.0,87562.0,0.0114283]
[1766670051507,0.02488893,87572.0,87562.0,0.0114283]
[1766670051709,2e-08,87574.0,87562.0,0.0114283]
[1766670051909,0.02488885,87573.0,87562.0,0.0114283]
[1766670052109,0.02488885,87572.0,87562.0,0.0114283]
[1766670052310,2e-08,87574.0,87562.0,0.0114283]
[1766670052510,0.02488884,87573.0,87562.0,0.0114283]
[1766670052708,2e-08,87574.0,87562.0,0.0114283]
[1766670052709,0.02488884,87572.0,87562.0,0.0114283]
[1766670052911,2e-08,87574.0,87562.0,0.0114283]
[1766670053112,0.02488841,87573.0,87562.0,0.0114283]
[1766670053300,0.02488841,87572.0,87562.0,0.0114283]
[1766670053599,2e-08,87574.0,87562.0,0.0114283]
[1766670053798,0.02488845,87573.0,87561.0,0.01159972]
[1766670053999,0.02488845,87572.0,87561.0,0.01159972]
[1766670054202,0.01142682,87574.0,87561.0,0.01159972]
[1766670054401,0.02488869,87573.0,87561.0,0.01159972]
[1766670054610,0.02488869,87572.0,87561.0,0.01159972]
[1766670054815,0.01142682,87574.0,87561.0,0.01159972]
[1766670055014,0.02488866,87573.0,87561.0,0.01159972]
[1766670055214,0.02488866,87572.0,87561.0,0.01159972]
[1766670055516,0.01142682,87574.0,87561.0,0.01159972]
[1766670055716,0.02488894,87573.0,87561.0,0.01159972]
[1766670055913,0.02488894,87572.0,87561.0,0.01159972]
[1766670056119,0.01142682,87574.0,87561.0,0.01159972]
[1766670056413,0.02488921,87573.0,87561.0,0.01159972]
[1766670056712,0.02488921,87572.0,87561.0,0.01159972]
[1766670056914,0.01142682,87574.0,87561.0,0.01159972]
[1766670057213,0.02488922,87573.0,87561.0,0.01159972]
[1766670057413,0.02488922,87572.0,87561.0,0.01159972]
[1766670057614,0.01142682,87574.0,87561.0,0.01159972]
[1766670057913,0.02494411,87573.0,87561.0,0.01159972]
[1766670058219,0.02494411,87572.0,87561.0,0.01159972]
[1766670058404,2e-08,87574.0,87561.0,0.01159972]
[1766670058604,0.02494451,87573.0,87561.0,0.01159972]
[1766670058809,0.02494451,87572.0,87561.0,0.01159972]
[1766670059009,0.0114269,87573.0,87561.0,0.01159972]
[1766670059316,0.02494493,87572.0,87561.0,0.01159972]
[1766670059618,0.0114269,87573.0,87561.0,0.01159972]
[1766670059818,0.02494286,87572.0,87561.0,0.01159972]
[1766670060020,2e-08,87574.0,87561.0,0.01159972]
[1766670060220,0.02494322,87573.0,87561.0,0.01159972]
[1766670060519,0.02494322,87572.0,87561.0,0.01159972]
[1766670060717,2e-08,87574.0,87561.0,0.01159972]
[1766670060912,0.02494309,87573.0,87561.0,0.01159972]
[1766670061211,0.02494309,87572.0,87561.0,0.01159972]
[1766670061411,2e-08,87574.0,87561.0,0.01159972]
[1766670061621,0.02494368,87573.0,87561.0,0.01159972]
[1766670061819,0.02494368,87572.0,87561.0,0.01159972]
[1766670062020,2e-08,87574.0,87561.0,0.01159972]
[1766670062223,0.02494419,87573.0,87561.0,0.01159972]
[1766670062416,0.02494419,87572.0,87561.0,0.01159972]
[1766670062616,2e-08,87574.0,87561.0,0.01159972]
[1766670062917,0.02494422,87573.0,87561.0,0.01159972]
[1766670063117,0.02494422,87572.0,87561.0,0.01159972]
[1766670063319,2e-08,87574.0,87561.0,0.01159972]
[1766670063520,0.02494486,87573.0,87561.0,0.01159972]
[1766670063719,0.02494486,87572.0,87561.0,0.01159972]
[1766670063922,2e-08,87574.0,87561.0,0.01159972]
[1766670064123,0.02494486,87573.0,87561.0,0.01159972]
[1766670064324,0.02494486,87572.0,87561.0,0.01159972]
[1766670064623,2e-08,87574.0,87561.0,0.01159972]
[1766670064817,0.02494561,87573.0,87561.0,0.01159972]
[1766670065125,0.02494561,87572.0,87561.0,0.01159972]
[1766670065327,2e-08,87574.0,87561.0,0.01159972]
[1766670065521,0.02494558,87573.0,87561.0,0.01159972]
[1766670065726,0.02494558,87572.0,87561.0,0.01159972]
[1766670066028,2e-08,87574.0,87561.0,0.01159972]
[1766670066326,0.02494574,87573.0,87561.0,0.01159972]
[1766670066525,0.02494574,87572.0,87561.0,0.01159972]
[1766670066722,2e-08,87574.0,87561.0,0.01159972]
[1766670066926,0.02494575,87573.0,87561.0,0.01159972]
[1766670067125,0.02494575,87572.0,87561.0,0.01159972]
[1766670067328,2e-08,87574.0,87561.0,0.01159972]
[1766670067526,0.02494594,87573.0,87561.0,0.01159972]
[1766670067714,0.02494594,87572.0,87561.0,0.01159972]
[1766670068013,2e-08,87574.0,87561.0,0.01159972]
[1766670068313,0.02494557,87573.0,87561.0,0.01159972]
[1766670068519,0.02494557,87572.0,87561.0,0.01159972]
[1766670068714,2e-08,87574.0,87561.0,0.01159972]
[1766670068926,0.02494561,87573.0,87561.0,0.01159972]
[1766670069123,0.02494561,87572.0,87561.0,0.01159972]
[1766670069327,2e-08,87574.0,87561.0,0.01159972]
[1766670069526,0.02494581,87573.0,87561.0,0.01159972]
[1766670069728,0.02494581,87572.0,87561.0,0.01159972]
[1766670069928,2e-08,87574.0,87561.0,0.01159972]
[1766670070125,0.02494575,87573.0,87561.0,0.01159972]
[1766670070325,0.02494575,87572.0,87561.0,0.01159972]
[1766670070526,2e-08,87574.0,87561.0,0.01159972]
[1766670070731,0.02494465,87573.0,87561.0,0.01159972]
[1766670070928,0.02494465,87572.0,87561.0,0.01159972]
[1766670071231,0.01142682,87574.0,87561.0,0.01159972]
[1766670071433,0.0249449,87573.0,87561.0,0.01159972]
[1766670071620,0.0249449,87572.0,87561.0,0.01159972]
[1766670071820,0.01142682,87574.0,87561.0,0.01159972]
[1766670072019,0.0249449,87573.0,87561.0,0.01159972]
[1766670072318,0.0249449,87572.0,87561.0,0.01159972]
[1766670072519,0.01142682,87574.0,87561.0,0.01159972]
[1766670072722,0.02494524,87573.0,87561.0,0.01159972]
[1766670072924,0.02494524,87572.0,87561.0,0.01159972]
[1766670073215,0.01142682,87574.0,87561.0,0.01159972]
[1766670073421,0.02494571,87573.0,87561.0,0.00017132]
[1766670073730,0.03637281,87572.0,87561.0,0.00017132]
[1766670073934,0.0114271,87572.0,87561.0,0.00017132]
[1766670078131,2e-08,87574.0,87561.0,0.00017132]
[1766670078430,0.02494735,87573.0,87561.0,0.00017132]
[1766670078734,0.02494735,87572.0,87561.0,0.00017132]
[1766670078929,2e-08,87574.0,87561.0,0.00017132]
[1766670079235,0.0114273,87571.0,87561.0,0.00017132]
[1766670082933,0.02494723,87570.0,87561.0,0.00017132]
[1766670083134,0.0114273,87571.0,87561.0,0.00017132]
[1766670083333,0.02494722,87570.0,87561.0,0.00017132]
[1766670083551,0.0114273,87571.0,87561.0,0.00017132]
[1766670083836,0.0249472,87570.0,87561.0,0.00017132]
[1766670084035,0.0114273,87571.0,87561.0,0.00017132]
[1766670084236,0.0249472,87570.0,87561.0,0.00017132]
[1766670084537,0.0114273,87571.0,87561.0,0.00017132]
[1766670084728,0.02494718,87570.0,87561.0,0.00017132]
[1766670084930,0.02494718,87569.0,87561.0,0.00017132]
[1766670085128,0.0114273,87571.0,87561.0,0.00017132]
[1766670085328,0.0249472,87570.0,87561.0,0.00017132]
[1766670085529,0.0249472,87569.0,87561.0,0.00017132]
[1766670085730,0.01142682,87574.0,87561.0,0.00017132]
[1766670085929,0.02494721,87573.0,87561.0,0.00017132]
[1766670086129,0.02494721,87572.0,87561.0,0.00017132]
[1766670086329,0.02494721,87571.0,87561.0,0.00017132]
[1766670086529,0.02494721,87570.0,87561.0,0.00017132]
[1766670086730,0.01142682,87574.0,87561.0,0.00017132]
[1766670086731,0.02494721,87569.0,87561.0,0.00017132]
[1766670086930,0.01142682,87574.0,87561.0,0.00017132]
[1766670087140,0.02494723,87573.0,87561.0,0.00017132]
[1766670087328,0.02494723,87572.0,87561.0,0.00017132]
[1766670087531,0.02494723,87571.0,87561.0,0.00017132]
[1766670087729,0.02494723,87570.0,87561.0,0.00017132]
[1766670087939,0.02494723,87569.0,87561.0,0.00017132]
[1766670088133,0.01142682,87574.0,87561.0,0.00017132]
[1766670088335,0.02488303,87573.0,87561.0,0.00017132]
[1766670088626,0.02488303,87572.0,87561.0,0.00017132]
[1766670088829,0.02488303,87571.0,87561.0,0.00017132]
[1766670089039,0.02488303,87570.0,87561.0,0.00017132]
[1766670089240,0.02488303,87569.0,87561.0,0.00017132]
[1766670089437,0.01142682,87574.0,87561.0,0.00017132]
[1766670089637,0.02488304,87573.0,87561.0,0.00017132]
[1766670089836,0.02488304,87572.0,87561.0,0.00017132]
[1766670090038,0.02488304,87571.0,87561.0,0.00017132]
[1766670090240,0.02488304,87570.0,87561.0,0.00017132]
[1766670090537,0.02488304,87569.0,87561.0,0.00017132]
[1766670090838,0.01142682,87574.0,87561.0,0.00017132]
[1766670091045,0.02488296,87573.0,87561.0,0.00017132]
[1766670091237,0.02488296,87572.0,87561.0,0.00017132]
[1766670091437,0.02488296,87571.0,87561.0,0.00017132]
[1766670091739,0.02488296,87570.0,87561.0,0.00017132]
[1766670091937,0.02488296,87569.0,87561.0,0.00017132]
[1766670092138,0.01142682,87574.0,87561.0,0.00017132]
[1766670092337,0.0248829,87573.0,87561.0,0.00017132]
[1766670092539,0.0248829,87572.0,87561.0,0.00017132]
[1766670092837,0.01142682,87574.0,87561.0,0.00017132]
[1766670093041,0.02488294,87573.0,87561.0,0.00017132]
[1766670093240,0.02488294,87572.0,87561.0,0.00017132]
[1766670093442,0.01142682,87574.0,87561.0,0.00017132]
[1766670093640,0.02488294,87573.0,87561.0,0.00017132]
[1766670093840,0.02488294,87572.0,87561.0,0.00017132]
[1766670094041,0.01142682,87574.0,87561.0,0.00017132]
[1766670094342,0.02488297,87573.0,87561.0,0.00017132]
[1766670094540,0.02488297,87572.0,87561.0,0.00017132]
[1766670094741,0.01142682,87574.0,87561.0,0.00017132]
[1766670094941,0.02488276,87573.0,87561.0,0.00017132]
[1766670095246,0.02488276,87572.0,87561.0,0.00017132]
[1766670095547,2e-08,87574.0,87561.0,0.00017132]
[1766670095740,0.02488301,87573.0,87561.0,0.00017132]
[1766670095941,0.02488301,87572.0,87561.0,0.00017132]
[1766670096241,2e-08,87574.0,87561.0,0.00017132]
[1766670096441,0.02488297,87573.0,87561.0,0.00017132]
[1766670096641,0.02488297,87572.0,87561.0,0.00017132]
[1766670096842,2e-08,87574.0,87561.0,0.00017132]
[1766670097042,0.02488299,87573.0,87561.0,0.00017132]
[1766670097242,0.02488299,87572.0,87561.0,0.00017132]
[1766670097443,2e-08,87574.0,87561.0,0.00017132]
[1766670097750,0.03630996,87573.0,87561.0,0.00017132]
[1766670098049,0.02488296,87572.0,87561.0,0.00017132]
[1766670098248,0.01142682,87574.0,87561.0,0.00017132]
[1766670098448,0.02488295,87573.0,87561.0,0.00017132]
[1766670098747,0.01142682,87574.0,87561.0,0.00017132]
[1766670098748,0.02488295,87572.0,87561.0,0.00017132]
[1766670098943,0.01142682,87574.0,87561.0,0.00017132]
[1766670099146,0.02488295,87573.0,87561.0,0.00017132]
[1766670099445,0.02488295,87572.0,87561.0,0.00017132]
[1766670099642,0.01142682,87574.0,87561.0,0.00017132]
[1766670099848,0.0114271,87572.0,87561.0,0.00017132]
[1766670100349,0.02488293,87571.0,87561.0,0.00017132]
[1766670100551,0.0114271,87572.0,87561.0,0.00017132]
[1766670100849,2e-08,87574.0,87561.0,0.00017132]
[1766670101050,0.02488282,87573.0,87561.0,0.00017132]
[1766670101250,0.02488282,87572.0,87561.0,0.00017132]
[1766670101450,2e-08,87574.0,87561.0,0.00017132]
[1766670101749,0.02488283,87573.0,87561.0,0.00017132]
[1766670101950,0.02488283,87572.0,87561.0,0.00017132]
[1766670102150,2e-08,87574.0,87561.0,0.00017132]
[1766670102450,0.02488283,87573.0,87561.0,0.00017132]
[1766670102646,0.02488283,87572.0,87561.0,0.00017132]
[1766670102847,0.02488283,87571.0,87561.0,0.00017132]
[1766670103041,2e-08,87574.0,87561.0,0.00017132]
[1766670103342,0.02488285,87573.0,87561.0,0.00017132]
[1766670103641,0.02488285,87572.0,87561.0,0.00017132]
[1766670103842,0.02488285,87571.0,87561.0,0.00017132]
[1766670104041,2e-08,87574.0,87561.0,0.00017132]
[1766670104241,0.02488284,87573.0,87561.0,0.00017132]
[1766670104442,0.02488284,87572.0,87561.0,0.00017132]
[1766670104643,0.02488284,87571.0,87561.0,0.00017132]
[1766670104843,2e-08,87574.0,87561.0,0.00017132]
[1766670105037,0.02488288,87573.0,87561.0,0.00017132]
[1766670105236,0.02488288,87572.0,87561.0,0.00017132]
[1766670105438,2e-08,87574.0,87561.0,0.00017132]
[1766670105654,0.02488275,87573.0,87561.0,0.00017132]
[1766670105848,0.02488275,87572.0,87561.0,0.00017132]
[1766670106147,2e-08,87574.0,87561.0,0.00017132]
[1766670106347,0.02488277,87573.0,87561.0,0.00017132]
[1766670106550,0.02488277,87572.0,87561.0,0.00017132]
[1766670106744,2e-08,87574.0,87561.0,0.00017132]
[1766670106945,0.02488287,87573.0,87561.0,0.00017132]
[1766670107148,0.02488287,87572.0,87561.0,0.00017132]
[1766670107348,2e-08,87574.0,87561.0,0.00017132]
[1766670107549,0.02488286,87573.0,87561.0,0.00017132]
[1766670107748,0.02488286,87572.0,87561.0,0.00017132]
[1766670107949,2e-08,87574.0,87561.0,0.00017132]
[1766670108149,0.02488284,87573.0,87561.0,0.00017132]
[1766670108352,0.02488284,87572.0,87561.0,0.00017132]
[1766670108544,2e-08,87574.0,87561.0,0.00017132]
[1766670108745,0.02488284,87573.0,87561.0,0.00017132]
[1766670108952,0.02488284,87572.0,87561.0,0.00017132]
[1766670109151,2e-08,87574.0,87561.0,0.00017132]
[1766670109347,0.02488284,87573.0,87561.0,0.00017132]
[1766670109549,0.02488284,87572.0,87561.0,0.00017132]
[1766670109852,2e-08,87574.0,87561.0,0.00017132]
[1766670110055,0.02488286,87573.0,87561.0,0.00017132]
[1766670110254,0.02488286,87572.0,87561.0,0.00017132]
[1766670110455,2e-08,87574.0,87562.0,0.0114283]